bitfinex/quotes_SOLUSD_20241209
["timestamp","ask_amount","ask_price","bid_price","bid_amount"]
[1733743617753,1.5796,227.43,227.33,12.77649551]
[1733743618374,1.5796,227.43,227.36,12.77649551]
[1733743619254,1.5796,227.43,227.35,12.77649551]
[1733743620670,1.5796,227.43,227.34,12.77649551]
[1733743621361,1.5796,227.43,227.35,12.77649551]
[1733743621552,1.5796,227.43,227.34,12.77649551]
[1733743621751,1.5796,227.43,227.32,12.77649551]
[1733743621952,1.5796,227.43,227.3,12.77649551]
[1733743623876,20.0,227.39,227.15,12.5589]
[1733743624072,20.0,227.39,227.22,12.77649551]
[1733743624289,20.0,227.39,227.23,12.77649551]
[1733743624675,20.0,227.39,227.22,12.77649551]
[1733743624855,20.0,227.35,227.2,12.77649551]
[1733743626081,8.0406,227.34,227.17,12.77649551]
[1733743626257,20.0,227.31,227.16,12.77649551]
[1733743627385,20.0,227.31,227.17,12.77649551]
[1733743627804,20.0,227.31,227.15,12.77649551]
[1733743627967,8.0406,227.36,227.13,12.77649551]
[1733743628285,6.74637641,227.41,227.12,12.77649551]
[1733743628286,20.0,227.27,227.12,12.77649551]
[1733743628663,20.0,227.27,227.11,12.77649551]
[1733743629284,20.0,227.23,227.1,12.77649551]
[1733743629686,20.0,227.23,227.09,12.77649551]
[1733743633263,20.0,227.23,227.1,12.77649551]
[1733743633464,20.0,227.23,227.09,12.77649551]
[1733743633790,20.0,227.23,227.06,0.66027378]
[1733743633791,20.0,227.23,227.05,12.77649551]
[1733743634094,20.0,227.19,227.05,12.77649551]
[1733743635383,20.0,227.19,227.06,12.77649551]
[1733743635708,20.0,227.19,227.02,0.6604074]
[1733743635709,20.0,227.19,227.05,12.77649551]
[1733743635866,20.0,227.19,227.06,12.77649551]
[1733743636805,20.0,227.19,227.04,12.77649551]
[1733743636979,20.0,227.19,227.03,12.77649551]
[1733743637298,1.6181,227.21,227.02,12.77649551]
[1733743637502,1.5125,227.14,227.01,12.77649551]
[1733743637673,1.5125,227.14,227.0,12.77649551]
[1733743638465,1.5125,227.14,226.99,12.77649551]
[1733743638988,1.5125,227.14,227.0,12.77649551]
[1733743639694,1.5125,227.14,226.99,12.77649551]
[1733743639882,20.0,227.1,226.99,12.77649551]
[1733743643208,20.0,227.1,226.98,12.77649551]
[1733743643508,20.0,227.1,226.99,12.77649551]
[1733743644197,20.0,227.1,226.96,0.66060238]
[1733743644198,20.0,227.1,226.98,12.77649551]
[1733743644711,20.0,227.1,226.96,13.43709789]
[1733743645007,20.0,227.1,226.95,12.77649551]
[1733743645306,20.0,227.05,226.93,12.77649551]
[1733743645596,20.0,227.05,226.92,12.77649551]
[1733743645775,20.0,227.05,226.9,12.77649551]
[1733743646701,20.0,227.05,226.88,12.77649551]
[1733743646910,1.5487,227.04,226.88,12.77649551]
[1733743647480,6.3824,227.03,226.88,12.77649551]
[1733743647696,20.0,227.0,226.88,12.77649551]
[1733743648406,20.0,227.0,226.83,11.021]
[1733743648407,20.0,227.0,226.86,12.77649551]
[1733743651884,1.6336,226.99,226.85,12.77649551]
[1733743652115,1.6336,226.99,226.84,12.77649551]
[1733743653893,6.5156,226.98,226.83,12.77649551]
[1733743654195,20.0,226.95,226.84,12.77649551]
[1733743654515,20.0,226.95,226.79,12.5376]
[1733743654516,6.5156,226.98,226.89,12.77649551]
[1733743654814,6.5156,226.98,226.85,0.66107798]
[1733743654815,6.5156,226.98,226.91,12.77649551]
[1733743655722,6.5156,226.98,226.89,12.77649551]
[1733743656588,6.5156,226.98,226.9,12.77649551]
[1733743656786,6.5156,226.98,226.94,12.77649551]
[1733743656983,6.4332,227.03,226.94,12.77649551]
[1733743657184,6.4332,227.03,226.96,12.77649551]
[1733743658013,6.4332,227.03,226.97,12.77649551]
[1733743658188,6.4332,227.03,226.98,12.77649551]
[1733743658511,6.4332,227.03,226.99,12.77649551]
[1733743658712,6.4332,227.03,226.98,12.77649551]
[1733743658919,6.4332,227.03,226.96,12.77649551]
[1733743659616,6.4332,227.03,226.95,12.77649551]
[1733743660205,6.4332,227.03,226.96,12.77649551]
[1733743661215,6.4332,227.03,226.95,12.77649551]
[1733743661722,6.4332,227.03,226.92,12.77649551]
[1733743662392,6.4332,227.03,226.91,20.0]
[1733743662393,6.4332,227.03,226.94,12.77649551]
[1733743663219,6.4332,227.03,226.95,12.77649551]
[1733743663714,6.4332,227.03,226.93,13.43728611]
[1733743665306,6.4332,227.03,226.94,12.77649551]
[1733743666123,6.4332,227.03,226.93,12.77649551]
[1733743666906,6.4332,227.03,226.92,12.77649551]
[1733743667100,6.4332,227.03,226.89,0.66079276]
[1733743667396,6.4332,227.03,226.93,12.77649551]
[1733743667706,6.4332,227.03,226.92,12.77649551]
[1733743667901,6.4332,227.03,226.91,12.77649551]
[1733743668104,6.4332,227.03,226.92,12.77649551]
[1733743669217,6.4332,227.03,226.9,12.77649551]
[1733743669421,20.0,227.0,226.88,12.77649551]
[1733743669990,20.0,227.0,226.87,12.77649551]
[1733743670190,20.0,227.0,226.88,12.77649551]
[1733743670385,20.0,227.0,226.89,12.77649551]
[1733743670792,20.0,227.0,226.9,12.77649551]
[1733743671297,20.0,227.0,226.89,12.77649551]
[1733743671699,20.0,227.0,226.9,12.77649551]
[1733743671903,20.0,227.0,226.89,12.77649551]
[1733743673912,20.0,227.0,226.87,12.77649551]
[1733743674094,20.0,227.0,226.85,12.77649551]
[1733743674095,1.6552,226.99,226.85,12.77649551]
[1733743674294,1.6552,226.99,226.86,12.77649551]
[1733743674916,1.6552,226.99,226.85,12.77649551]
[1733743675220,1.6552,226.99,226.83,0.66095777]
[1733743675221,6.6035,226.98,226.84,12.77649551]
[1733743675523,6.6035,226.98,226.85,12.77649551]
[1733743676208,20.0,226.95,226.85,12.77649551]
[1733743676835,20.0,226.95,226.84,12.77649551]
[1733743677005,20.0,226.95,226.81,12.77649551]
[1733743677205,20.0,226.95,226.83,8.21749533]
[1733743678501,20.0,226.95,226.84,8.21749533]
[1733743678703,20.0,226.95,226.83,8.21749533]
[1733743679519,20.0,226.95,226.8,20.0]
[1733743679726,20.0,226.95,226.83,8.21749533]
[1733743680611,20.0,226.95,226.8,8.21749533]
[1733743681222,20.0,226.95,226.79,8.87858346]
[1733743681414,20.0,226.91,226.74,0.66121707]
[1733743681613,20.0,226.91,226.75,8.21749533]
[1733743681819,20.0,226.91,226.76,8.21749533]
[1733743682532,1.5457,226.89,226.74,0.66121707]
[1733743682827,1.5457,226.89,226.71,0.5117007]
[1733743682828,20.0,226.87,226.71,0.5117007]
[1733743683031,6.0831,226.86,226.71,0.5117007]
[1733743683238,20.0,226.83,226.71,0.5117007]
[1733743684329,20.0,226.78,226.71,0.5117007]
[1733743685018,6.5581,226.81,226.72,8.21749533]
[1733743685231,6.5581,226.81,226.73,12.84977272]
[1733743685427,6.5581,226.81,226.72,12.84977272]
[1733743685635,6.5581,226.81,226.71,13.36147342]
[1733743686011,6.5581,226.81,226.71,0.5117007]
[1733743686220,6.5581,226.81,226.71,13.36147342]
[1733743686738,6.5581,226.81,226.72,12.84977272]
[1733743687031,6.5581,226.81,226.71,13.36147342]
[1733743687212,6.5581,226.81,226.71,0.5117007]
[1733743687817,20.0,226.78,226.71,0.5117007]
[1733743688128,6.5581,226.81,226.71,13.36147342]
[1733743688724,6.5581,226.81,226.72,12.84977272]
[1733743688911,6.5581,226.81,226.71,13.36147342]
[1733743689737,6.5581,226.81,226.72,12.84977272]
[1733743689935,6.5581,226.81,226.75,12.84977272]
[1733743690145,6.5581,226.81,226.71,1.17308769]
[1733743690146,6.5581,226.81,226.77,12.84977272]
[1733743690304,6.5831,226.86,226.77,12.84977272]
[1733743691323,6.5831,226.86,226.78,12.84977272]
[1733743692140,6.5831,226.86,226.77,12.84977272]
[1733743692544,6.5831,226.86,226.78,12.84977272]
[1733743693040,6.5831,226.86,226.79,12.84977272]
[1733743693749,6.5831,226.86,226.78,12.84977272]
[1733743694648,6.5831,226.86,226.81,12.84977272]
[1733743694824,6.445,226.92,226.85,12.84977272]
[1733743695017,6.445,226.92,226.86,12.84977272]
[1733743695218,6.445,226.92,226.88,12.84977272]
[1733743695816,6.445,226.92,226.86,12.84977272]
[1733743696019,6.445,226.92,226.84,12.84977272]
[1733743696253,6.445,226.92,226.85,12.84977272]
[1733743696551,6.445,226.92,226.86,12.84977272]
[1733743696927,6.445,226.92,226.87,12.84977272]
[1733743697450,6.445,226.92,226.88,12.84977272]
[1733743697921,6.445,226.92,226.87,12.84977272]
[1733743698123,6.445,226.92,226.86,12.84977272]
[1733743698346,6.445,226.92,226.87,12.84977272]
[1733743698623,6.445,226.92,226.85,12.84977272]
[1733743699521,6.445,226.92,226.8,0.66099772]
[1733743699522,6.445,226.92,226.84,12.84977272]
[1733743699725,6.445,226.92,226.85,12.84977272]
[1733743699921,6.445,226.92,226.86,12.84977272]
[1733743700721,6.445,226.92,226.85,12.84977272]
[1733743702267,6.445,226.92,226.83,12.84977272]
[1733743702440,6.445,226.92,226.86,12.84977272]
[1733743703148,6.445,226.92,226.89,12.84977272]
[1733743703746,6.445,226.92,226.83,0.66101089]
[1733743703962,6.445,226.92,226.87,12.84977272]
[1733743704134,6.445,226.92,226.88,12.84977272]
[1733743705957,6.445,226.92,226.87,12.84977272]
[1733743706724,6.445,226.92,226.86,12.84977272]
[1733743707026,6.445,226.92,226.84,12.84977272]
[1733743708343,6.445,226.92,226.85,12.84977272]
[1733743708962,7.6568,227.02,226.89,12.84977272]
[1733743709161,20.0,226.99,226.91,8.21082531]
[1733743709462,20.0,226.99,226.9,8.21082531]
[1733743709628,7.6568,227.02,226.9,8.21082531]
[1733743709828,7.6568,227.02,226.89,8.21082531]
[1733743710059,7.6568,227.02,226.9,8.21082531]
[1733743711141,7.6568,227.02,226.83,11.68234872]
[1733743711367,20.0,226.99,226.88,12.83294615]
[1733743711540,20.0,226.99,226.81,1.6578]
[1733743711541,20.0,226.99,226.85,12.83294615]
[1733743711740,20.0,226.98,226.84,12.83294615]
[1733743712040,1.5797,226.97,226.84,12.83294615]
[1733743712356,20.0,226.93,226.81,12.83294615]
[1733743712860,20.0,226.93,226.8,12.83294615]
[1733743713869,20.0,226.93,226.79,12.83294615]
[1733743715064,20.0,226.93,226.78,12.83294615]
[1733743715362,20.0,226.93,226.82,12.83294615]
[1733743716036,20.0,226.89,226.73,0.66118385]
[1733743716235,20.0,226.89,226.75,12.83294615]
[1733743716745,20.0,226.89,226.77,12.83294615]
[1733743717436,20.0,226.89,226.75,12.83294615]
[1733743718245,20.0,226.89,226.71,0.5117007]
[1733743718431,20.0,226.85,226.71,13.34464685]
[1733743718633,20.0,226.85,226.71,0.5117007]
[1733743718847,20.0,226.85,226.71,13.34464685]
[1733743719978,20.0,226.85,226.71,0.5117007]
[1733743720138,20.0,226.85,226.71,13.34464685]
[1733743720644,20.0,226.85,226.72,12.83294615]
[1733743721358,20.0,226.85,226.71,0.5117007]
[1733743722155,20.0,226.81,226.71,0.5117007]
[1733743725352,7.9765,226.84,226.76,12.83294615]
[1733743725550,7.9765,226.84,226.78,12.83294615]
[1733743725757,6.3155,226.84,226.78,12.83294615]
[1733743725990,6.3155,226.84,226.77,12.83294615]
[1733743726566,6.3155,226.84,226.76,12.83294615]
[1733743726783,6.3155,226.84,226.79,12.83294615]
[1733743726991,8.2423,226.89,226.8,12.83294615]
[1733743727166,8.2423,226.89,226.82,12.83294615]
[1733743728360,8.2423,226.89,226.83,12.83294615]
[1733743728884,6.6448,226.94,226.83,12.83294615]
[1733743729878,6.6448,226.94,226.82,12.83294615]
[1733743730759,6.6448,226.94,226.81,12.83294615]
[1733743731765,6.6448,226.94,226.8,12.83294615]
[1733743731982,6.6448,226.94,226.81,12.83294615]
[1733743732390,6.6448,226.94,226.82,12.83294615]
[1733743734173,6.6448,226.94,226.81,12.83294615]
[1733743734979,6.6448,226.94,226.82,12.83294615]
[1733743735174,6.6448,226.94,226.83,12.83294615]
[1733743735498,6.6448,226.94,226.84,12.83294615]
[1733743735870,6.6448,226.94,226.85,12.83294615]
[1733743739378,6.6448,226.94,226.86,12.83294615]
[1733743739688,6.6448,226.94,226.85,12.83294615]
[1733743741199,6.6448,226.94,226.86,12.83294615]
[1733743741867,6.6448,226.94,226.85,12.83294615]
[1733743742692,6.40626972,226.94,226.85,12.83294615]
[1733743742988,6.40626972,226.94,226.84,12.83294615]
[1733743745102,6.40626972,226.94,226.86,12.83294615]
[1733743745310,6.40626972,226.94,226.89,8.21406603]
[1733743745599,1.6357,227.05,226.9,8.21406603]
[1733743745789,6.3173,227.04,226.91,8.21406603]
[1733743745995,6.3173,227.04,226.9,8.21406603]
[1733743746971,20.0,227.01,226.89,8.21406603]
[1733743747280,20.0,227.01,226.87,12.83246305]
[1733743748377,1.5779,227.0,226.87,12.83246305]
[1733743748601,6.4805,226.99,226.85,12.83246305]
[1733743748919,20.0,226.96,226.83,12.83246305]
[1733743749207,20.0,226.96,226.85,12.83246305]
[1733743749414,20.0,226.96,226.84,12.83246305]
[1733743749708,20.0,226.96,226.85,12.83246305]
[1733743751392,20.0,226.96,226.84,12.83246305]
[1733743752911,20.0,226.96,226.8,0.66107536]
[1733743752912,20.0,226.96,226.83,12.83246305]
[1733743753827,20.0,226.96,226.82,12.83246305]
[1733743755527,6.0661,226.94,226.82,12.83246305]
[1733743755700,20.0,226.91,226.76,0.66119405]
[1733743756029,20.0,226.91,226.77,12.83246305]
[1733743756209,20.0,226.91,226.78,12.83246305]
[1733743756603,20.0,226.91,226.79,12.83246305]
[1733743756812,20.0,226.91,226.78,12.83246305]
[1733743758322,20.0,226.91,226.77,12.83246305]
[1733743758504,1.539,226.9,226.74,0.66132127]
[1733743758697,6.4576,226.89,226.75,12.83246305]
[1733743760635,6.4576,226.89,226.76,12.83246305]
[1733743761046,6.4576,226.89,226.77,12.83246305]
[1733743761624,6.4576,226.89,226.76,12.83246305]
[1733743762435,6.4576,226.89,226.78,12.83246305]
[1733743762628,6.4576,226.89,226.77,12.83246305]
[1733743763222,6.4576,226.89,226.76,12.83246305]
[1733743764960,6.4576,226.89,226.74,12.83246305]
[1733743765169,6.4576,226.89,226.75,12.83246305]
[1733743765636,6.4576,226.89,226.76,12.83246305]
[1733743766039,6.4576,226.89,226.79,12.83246305]
[1733743766641,6.4576,226.89,226.78,12.83246305]
[1733743767236,6.4576,226.89,226.79,12.83246305]
[1733743767462,6.4576,226.89,226.78,12.83246305]
[1733743768030,6.4576,226.89,226.77,12.83246305]
[1733743768436,6.4576,226.89,226.76,12.83246305]
[1733743768856,6.4576,226.89,226.77,12.83246305]
[1733743769261,6.4576,226.89,226.77,8.2208225]
[1733743769539,6.4576,226.89,226.78,8.2208225]
[1733743770869,6.4576,226.89,226.77,8.2208225]
[1733743771772,1.6344,226.85,226.71,0.5117007]
[1733743771948,1.6344,226.85,226.73,8.2208225]
[1733743772287,1.6344,226.85,226.74,8.2208225]
[1733743772652,1.6344,226.85,226.76,8.2208225]
[1733743773272,1.6344,226.85,226.72,8.2208225]
[1733743774387,1.6344,226.85,226.71,0.5117007]
[1733743774388,1.6344,226.85,226.73,8.2208225]
[1733743774894,1.6344,226.85,226.72,8.2208225]
[1733743775682,21.6344,226.85,226.71,0.5117007]
[1733743775895,21.6344,226.85,226.72,8.2208225]
[1733743777690,21.6344,226.85,226.71,8.7325232]
[1733743777863,6.6562,226.84,226.71,8.7325232]
[1733743778274,6.6562,226.84,226.72,8.2208225]
[1733743778674,20.0,226.81,226.71,0.5117007]
[1733743779461,20.0,226.81,226.71,8.7325232]
[1733743779683,20.0,226.81,226.73,8.2208225]
[1733743779882,6.6562,226.84,226.74,8.2208225]
[1733743780083,6.6562,226.84,226.73,8.2208225]
[1733743780304,6.6562,226.84,226.71,1.17310602]
[1733743780463,6.6562,226.84,226.74,8.2208225]
[1733743781499,6.6562,226.84,226.73,8.2208225]
[1733743781708,6.6562,226.84,226.71,0.5117007]
[1733743781920,20.0,226.81,226.71,0.5117007]
[1733743794995,20.0,226.81,226.73,8.2208225]
[1733743795202,6.6562,226.84,226.73,8.2208225]
[1733743795518,6.6562,226.84,226.71,1.17322404]
[1733743795519,6.6562,226.84,226.74,8.2208225]
[1733743795713,6.6562,226.84,226.73,8.2208225]
[1733743796636,6.6562,226.84,226.72,8.2208225]
[1733743798926,6.6562,226.84,226.71,8.7325232]
[1733743799257,6.6562,226.84,226.71,0.5117007]
[1733743799548,20.0,226.81,226.71,0.5117007]
[1733743799725,1.5419,226.8,226.71,0.5117007]
[1733743799916,20.0,226.76,226.71,0.5117007]
[1733743800356,8.0344,226.75,226.71,0.5117007]
[1733743800532,20.0,226.72,226.71,0.5117007]
[1733743804215,20.0,226.72,226.54,20.6618564]
[1733743804535,20.0,226.72,226.54,8.2208225]
[1733743804740,1.6612,226.67,226.52,1.6302]
[1733743804951,1.6612,226.67,226.5,8.2208225]
[1733743805115,1.6612,226.67,226.48,0.5117007]
[1733743805319,6.5985,226.66,226.48,8.7325232]
[1733743805533,20.0,226.63,226.48,8.7325232]
[1733743805756,20.0,226.63,226.49,8.2208225]
[1733743805962,20.0,226.63,226.48,8.7325232]
[1733743806624,20.0,226.63,226.48,0.5117007]
[1733743807317,1.5318,226.62,226.48,0.5117007]
[1733743807925,20.0,226.58,226.48,0.5117007]
[1733743810430,28.0725,226.59,226.48,0.5117007]
[1733743810750,20.0,226.56,226.48,0.5117007]
[1733743815259,2.72754796,226.58,226.48,0.5117007]
[1733743815457,20.0,226.54,226.48,0.5117007]
[1733743815667,7.3208,226.53,226.48,0.5117007]
[1733743815817,20.0,226.5,226.31,0.09637238]
[1733743816028,20.0,226.5,226.32,8.2208225]
[1733743816217,20.0,226.5,226.31,0.09637238]
[1733743816658,7.3208,226.53,226.31,0.09637238]
[1733743816659,0.9684,226.53,226.31,0.09637238]
[1733743816836,20.0,226.49,226.31,0.09637238]
[1733743817337,20.0,226.49,226.37,8.2208225]
[1733743818065,20.0,226.49,226.36,8.2208225]
[1733743818363,20.0,226.49,226.38,8.2208225]
[1733743818564,20.0,226.49,226.39,8.2208225]
[1733743818736,20.0,226.49,226.38,8.2208225]
[1733743818938,20.0,226.49,226.37,8.2208225]
[1733743819561,20.0,226.49,226.35,8.2208225]
[1733743819738,20.0,226.49,226.34,8.2208225]
[1733743820165,20.0,226.49,226.32,0.66244845]
[1733743820354,20.0,226.49,226.33,8.2208225]
[1733743820662,20.0,226.49,226.31,0.09637238]
[1733743820871,20.0,226.49,226.32,8.2208225]
[1733743821070,20.0,226.49,226.31,0.09637238]
[1733743821937,7.0742,226.48,226.31,0.09637238]
[1733743822146,20.0,226.45,226.31,0.09637238]
[1733743826561,7.5462,226.44,226.31,0.09637238]
[1733743826767,20.0,226.41,226.31,0.09637238]
[1733743828365,0.9684,226.4,226.31,0.09637238]
[1733743828556,20.0,226.36,226.31,0.09637238]
[1733743830653,6.4476,226.39,226.31,0.09637238]
[1733743830862,0.9684,226.4,226.31,0.09637238]
[1733743831044,6.5439,226.44,226.31,12.99460903]
[1733743831479,6.5439,226.44,226.32,12.89823665]
[1733743831653,7.5123,226.52,226.36,12.89823665]
[1733743832091,7.5123,226.52,226.33,13.56084322]
[1733743832259,7.5123,226.52,226.31,12.99460903]
[1733743832583,7.5123,226.52,226.35,12.89823665]
[1733743832891,7.5123,226.52,226.36,12.89823665]
[1733743833061,7.5123,226.52,226.32,0.66259657]
[1733743833381,7.5123,226.52,226.32,12.89823665]
[1733743833686,20.0,226.49,226.32,12.89823665]
[1733743833865,20.0,226.49,226.31,12.99460903]
[1733743834288,20.0,226.49,226.32,12.89823665]
[1733743834991,20.0,226.49,226.31,0.09637238]
[1733743839615,7.5123,226.52,226.33,12.89823665]
[1733743839912,7.5123,226.52,226.34,15.19941053]
[1733743840410,7.5123,226.52,226.35,12.89823665]
[1733743840707,7.5123,226.52,226.34,15.19941053]
[1733743840908,20.0,226.49,226.34,2.30117388]
[1733743841107,20.0,226.49,226.31,0.09637238]
[1733743841609,0.9684,226.48,226.31,0.09637238]
[1733743843102,6.4428,226.47,226.31,0.09637238]
[1733743843303,20.0,226.44,226.31,0.09637238]
[1733743843816,0.9684,226.43,226.31,0.09637238]
[1733743844305,20.0,226.39,226.31,0.09637238]
[1733743848590,0.9684,226.38,226.31,0.09637238]
[1733743851818,0.12549,226.37,226.31,0.09637238]
[1733743852892,0.25098,226.37,226.31,0.09637238]
[1733743853111,0.12549,226.37,226.31,0.09637238]
[1733743855904,1.87921339,226.37,226.31,0.09637238]
[1733743856110,0.12549,226.37,226.31,0.09637238]
[1733743859116,2.41484538,226.38,226.31,0.09637238]
[1733743859814,0.25098,226.37,226.31,0.09637238]
[1733743860438,0.12549,226.36,226.31,0.09637238]
[1733743860841,2.41484538,226.38,226.31,0.09637238]
[1733743861737,6.0654,226.42,226.31,0.09637238]
[1733743862231,0.5939,226.44,226.32,0.25098]
[1733743862470,6.5328,226.48,226.32,13.14921665]
[1733743862836,6.5328,226.48,226.36,0.12549]
[1733743863044,6.74637641,226.59,226.37,1.6502]
[1733743863045,6.6419,226.58,226.37,1.6502]
[1733743863269,12.994609,226.55,226.38,13.27470665]
[1733743863481,12.994609,226.55,226.4,12.89823665]
[1733743863661,6.6419,226.58,226.43,0.12549]
[1733743863969,6.048,226.58,226.43,13.14921665]
[1733743864170,6.048,226.58,226.43,0.25098]
[1733743864540,1.76970973,226.61,226.44,8.2061]
[1733743864541,0.12549,226.6,226.44,8.2061]
[1733743865173,20.0,226.62,226.44,8.2061]
[1733743865539,20.0,226.62,226.45,0.37647]
[1733743866151,0.12549,226.61,226.45,0.12549]
[1733743866334,0.25098,226.61,226.44,8.2061]
[1733743866739,0.25098,226.61,226.44,1.6029]
[1733743866938,20.0,226.62,226.45,0.25098]
[1733743867346,2.38258281,226.63,226.45,0.25098]
[1733743867552,6.2665,226.65,226.47,0.25098]
[1733743867759,6.2665,226.65,226.48,0.25098]
[1733743868081,0.5939,226.69,226.51,0.12549]
[1733743868375,0.5939,226.69,226.51,0.25098]
[1733743868583,6.6432,226.7,226.53,1.5954]
[1733743868877,5.4203316,226.72,226.54,0.37647]
[1733743869167,5.4203316,226.72,226.54,0.12549]
[1733743869380,5.4203316,226.72,226.54,0.25098]
[1733743869536,10.72278109,226.76,226.54,0.25098]
[1733743869537,6.6432,226.76,226.56,0.25098]
[1733743869869,6.6432,226.76,226.59,0.12549]
[1733743870085,0.25098,226.75,226.53,22.19665502]
[1733743870369,0.12549,226.75,226.54,1.03842567]
[1733743870560,5.43721229,226.77,226.56,20.85223502]
[1733743870768,5.43721229,226.77,226.59,0.12549]
[1733743871076,5.43721229,226.77,226.61,0.12549]
[1733743871077,3.6849961,226.77,226.61,0.12549]
[1733743871369,0.25098,226.8,226.61,1.03817902]
[1733743871566,6.4021,226.81,226.61,1.03817902]
[1733743871802,6.4021,226.81,226.61,21.63943404]
[1733743871972,0.0619591,226.82,226.64,0.12549]
[1733743872148,0.0619591,226.82,226.63,0.25098]
[1733743872565,0.0619591,226.82,226.61,0.25098]
[1733743872742,0.0619591,226.82,226.62,0.78719389]
[1733743872943,0.0619591,226.82,226.64,0.12549]
[1733743873174,0.06118793,226.86,226.66,0.12549]
[1733743873370,1.80549871,226.86,226.66,0.12549]
[1733743873572,1.80549871,226.86,226.68,0.25098]
[1733743873747,0.06118793,226.86,226.68,0.25098]
[1733743873945,0.06118793,226.86,226.71,0.12549]
[1733743874142,0.31216793,226.86,226.69,0.12549]
[1733743874773,0.31216793,226.86,226.67,1.6407]
[1733743875171,0.37647,226.85,226.67,1.6407]
[1733743875351,0.4384291,226.85,226.67,1.6407]
[1733743875579,0.06118793,226.84,226.67,1.6407]
[1733743876005,0.25098,226.83,226.67,1.6407]
[1733743876302,0.37412703,226.83,226.67,1.6407]
[1733743876528,0.12314703,226.83,226.68,0.25098]
[1733743876671,20.0,226.89,226.68,0.25098]
[1733743876672,91.7,226.92,226.7,0.25098]
[1733743876872,3.6849961,226.91,226.72,0.12549]
[1733743877087,3.6849961,226.91,226.72,0.25098]
[1733743877486,0.25098,226.9,226.72,0.25098]
[1733743877687,0.25098,226.9,226.71,6.4517]
[1733743878105,0.94738569,226.9,226.71,6.4517]
[1733743878404,0.12549,226.89,226.71,6.4517]
[1733743879614,20.94738569,226.9,226.71,6.4517]
[1733743879615,20.69640569,226.9,226.71,6.4517]
[1733743879822,0.25098,226.89,226.71,6.4517]
[1733743880711,0.12549,226.88,226.71,6.4517]
[1733743880888,20.0,226.9,226.74,1.5615]
[1733743881077,20.0,226.9,226.75,0.12549]
[1733743881479,7.95255112,226.93,226.75,0.12549]
[1733743882014,0.25098,226.92,226.75,0.12549]
[1733743882322,0.25098,226.92,226.75,0.25098]
[1733743882323,0.12549,226.92,226.75,0.25098]
[1733743882482,0.0619591,226.94,226.77,0.25098]
[1733743883160,0.0619591,226.94,226.76,0.12549]
[1733743884002,0.0619591,226.94,226.78,0.12549]
[1733743884228,1.856319,227.0,226.8,0.25098]
[1733743884433,0.0619591,227.0,226.82,0.25098]
[1733743884602,0.0619591,227.0,226.84,0.25098]
[1733743884804,0.0619591,227.0,226.85,7.6661]
[1733743885215,0.0619591,227.0,226.86,0.12549]
[1733743885427,0.0619591,227.0,226.86,0.25098]
[1733743885621,0.06118793,227.01,226.86,0.37647]
[1733743888327,0.5736598,227.05,226.88,0.25098]
[1733743888532,0.5117007,227.05,226.94,0.25098]
[1733743888706,0.5117007,227.05,226.96,0.25098]
[1733743888912,0.5117007,227.05,226.95,0.78627485]
[1733743888913,0.5117007,227.05,227.0,6.78239]
[1733743889919,1.80379976,227.19,227.0,6.78239]
[1733743890231,0.12549,227.2,227.0,6.78239]
[1733743890655,0.25098,227.18,227.0,6.78239]
[1733743890833,20.0,227.19,227.02,0.12549]
[1733743891022,20.0,227.19,227.02,0.25098]
[1733743891219,0.12549,227.18,227.02,0.12549]
[1733743891851,1.73341171,227.22,227.01,0.78605881]
[1733743892057,0.69640569,227.24,227.01,0.78605881]
[1733743892230,0.12549,227.23,227.01,0.78605881]
[1733743892635,20.0,227.23,227.03,0.12549]
[1733743892936,20.69640569,227.24,227.03,0.78602172]
[1733743893120,0.12549,227.23,227.03,0.78602172]
[1733743893323,2.46438282,227.24,227.04,0.12549]
[1733743893544,0.25098,227.23,227.06,0.12549]
[1733743893745,0.25098,227.23,227.07,8.2101]
[1733743893943,2.46438282,227.24,227.07,8.2101]